[Event "DFMMLV 2019"]
[Site "Braunfels"]
[Date "2019.06.23"]
[Round "5.33"]
[White "Rieseler, Caroline"]
[Black "Brandt, Carina"]
[Result "1-0"]
[ECO "C18"]
[WhiteElo "2111"]
[BlackElo "2085"]
[Annotator "NA"]
[PlyCount "79"]
[EventDate "2019.06.20"]
[EventType "team-tourn"]
[EventCountry "GER"]
[SourceTitle "playchess.com"]
[Source "ChessBase"]
[SourceQuality "1"]
[WhiteTeam "Hessen 1"]
[BlackTeam "Hamburg"]
[TimeControl "40/5400+30:1800+30"]

1. e4 {[%emt 0:00:00]} e6 {[%emt 0:00:00]} 2. d4 {[%emt 0:00:00]} d5 {[%emt 0:00:00]} 3. Nc3 {[%emt 0:00:08]} Bb4 {[%emt 0:00:13]} 4. e5 {[%emt 0:00:12]} c5 {[%emt 0:00:08]} 5. a3 {[%emt 0:00:12]} Bxc3+ {[%emt 0:00:05]} 6. bxc3 {[%emt 0:00:04]} Ne7 {[%emt 0:00:06]} 7. Qg4 {[%emt 0:00:13]} cxd4 {[%emt 0:01:22]} 8. Qxg7 {[%emt 0:00:08]} Rg8 {[%emt 0:00:04]} 9. Qxh7 {[%emt 0:00:05]} Qc7 {[%emt 0:00:04]} 10. Ne2 {[%emt 0:00:26]} dxc3 {[%emt 0:00:25]} 11. f4 {[%emt 0:00:16]} Nbc6 {[%emt 0:00:05]} 12. h4 {[%emt 0:00:27]} Bd7 {[%emt 0:01:36]} 13. h5 {[%emt 0:02:22]} O-O-O {[%emt 0:02:35]} 14. Qd3 {[%emt 0:00:08]} d4 {[%emt 0:00:45]} 15. Rg1 {[%emt 0:02:51]} Rg4 {[%emt 0:04:37]} 16. g3 {[%emt 0:01:37]} Nxe5 {[%emt 0:12:00]} 17. fxe5 {[%emt 0:02:55]} Qxe5 {[%emt 0:00:06]} 18. Bf4 {[%emt 0:13:13]} Qxh5 {[%emt 0:03:07]} 19. Qxd4 {[%emt 0:03:34]} Nc6 {[%emt 0:02:13]} 20. Qxc3 {[%emt 0:02:57]} e5 {[%emt 0:00:20]} 21. Be3 {[%emt 0:06:33]} Be6 {[%emt 0:02:45]} 22. Rb1 {[%emt 0:22:49]} Rc4 {[%emt 0:12:45]} 23. Qb2 {[%emt 0:00:09]} Rd7 {[%emt 0:01:23]} 24. Bg2 {[%emt 0:06:45]} Nd4 {[%emt 0:05:28]} 25. Bxd4 {[%emt 0:18:17]} exd4 {[%emt 0:00:37]} 26. Bxb7+ {[%emt 0:00:39]} Kd8 {[%emt 0:00:03]} 27. Be4 {[%emt 0:01:21]} Qa5+ {[%emt 0:08:28]} 28. Kf2 {[%emt 0:00:42]} Bf5 {[%emt 0:06:18]} 29. Qb8+ {[%emt 0:02:52]} Rc8 {[%emt 0:03:35]} 30. Qf4 {[%emt 0:01:12]} Rc5 {[%emt 0:02:51]} 31. Rb8+ {[%emt 0:00:35]} Ke7 {[%emt 0:00:01]} 32. Qg5+ {[%emt 0:01:34]} Kd6 {[%emt 0:02:15]} 33. Qf6+ {[%emt 0:03:30]} Kc7 {[%emt 0:01:42]} 34. Rb7+ {[%emt 0:00:10]} Kc8 {[%emt 0:00:07]} 35. Rxd7 {[%emt 0:00:57]} Bxe4 {[%emt 0:05:26]} 36. Qxd4 {[%emt 0:00:28]} Rf5+ {[%emt 0:00:44]} 37. Nf4 {[%emt 0:00:18]} Bc6 {[%emt 0:07:26]} 38. Rxa7 {[%emt 0:00:50]} Qb5 {[%emt 0:01:00]} 39. Rd1 {[%emt 0:01:56]} Bd5 {[%emt 0:01:10]} 40. Qh8+ {[%emt 0:00:46]} 1-0

[Event "DFMMLV 2019"]
[Site "Braunfels"]
[Date "2019.06.23"]
[Round "5.34"]
[White "Koellner, Felicitas Ophelia"]
[Black "Bluebaum, Johanna"]
[Result "1-0"]
[ECO "D04"]
[WhiteElo "1847"]
[BlackElo "2003"]
[Annotator "NA"]
[PlyCount "83"]
[EventDate "2019.06.20"]
[EventType "team-tourn"]
[EventCountry "GER"]
[SourceTitle "playchess.com"]
[Source "ChessBase"]
[SourceQuality "1"]
[WhiteTeam "Hamburg"]
[BlackTeam "Hessen 1"]
[TimeControl "40/5400+30:1800+30"]

1. d4 {[%emt 0:00:00]} d5 {[%emt 0:00:00]} 2. Nf3 {[%emt 0:00:00]} Nf6 {[%emt 0:01:51]} 3. e3 {[%emt 0:00:00]} Bg4 {[%emt 0:00:47]} 4. h3 {[%emt 0:00:15]} Bh5 {[%emt 0:01:09]} 5. g4 {[%emt 0:01:03]} Bg6 {[%emt 0:00:17]} 6. Ne5 {[%emt 0:00:08]} Nbd7 {[%emt 0:13:44]} 7. h4 {[%emt 0:00:36]} Nxe5 {[%emt 0:10:43]} 8. dxe5 {[%emt 0:24:47]} Nxg4 {[%emt 0:09:03]} 9. Qxg4 {[%emt 0:03:35]} Bxc2 {[%emt 0:03:54]} 10. Nc3 {[%emt 0:00:39]} e6 {[%emt 0:01:33]} 11. Qe2 {[%emt 0:02:16]} Bf5 {[%emt 0:01:40]} 12. Qb5+ {[%emt 0:00:53]} c6 {[%emt 0:01:48]} 13. Qxb7 {[%emt 0:00:25]} Rc8 {[%emt 0:00:43]} 14. Bd2 {[%emt 0:04:07]} Rc7 {[%emt 0:02:19]} 15. Qb3 {[%emt 0:12:58]} Be7 {[%emt 0:01:13]} 16. h5 {[%emt 0:04:09]} Qc8 {[%emt 0:10:21]} 17. Qa4 {[%emt 0:03:55]} O-O {[%emt 0:03:37]} 18. Be2 {[%emt 0:05:04]} h6 {[%emt 0:02:12]} 19. Qf4 {[%emt 0:06:43]} Kh8 {[%emt 0:01:21]} 20. O-O {[%emt 0:08:24]} Qb8 {[%emt 0:01:29]} 21. b3 {[%emt 0:01:20]} Rb7 {[%emt 0:00:49]} 22. Kh2 {[%emt 0:02:09]} Rb4 {[%emt 0:00:58]} 23. Qg3 {[%emt 0:00:31]} Bh4 {[%emt 0:02:28]} 24. Qg2 {[%emt 0:01:23]} Qxe5+ {[%emt 0:01:12]} 25. f4 {[%emt 0:00:20]} Qb8 {[%emt 0:02:55]} 26. Na4 {[%emt 0:02:17]} Rb7 {[%emt 0:08:09]} 27. Rg1 {[%emt 0:01:07]} Bf6 {[%emt 0:03:49]} 28. Bc3 {[%emt 0:00:43]} Qd8 {[%emt 0:02:05]} 29. Bxf6 {[%emt 0:04:38]} Qxf6 {[%emt 0:00:01]} 30. Qg3 {[%emt 0:00:08]} g6 {[%emt 0:05:53]} 31. Bg4 {[%emt 0:03:20]} Rg8 {[%emt 0:02:09]} 32. Bxf5 {[%emt 0:00:44]} Qxf5 {[%emt 0:00:01]} 33. hxg6 {[%emt 0:01:33]} fxg6 {[%emt 0:01:51]} 34. Qg4 {[%emt 0:00:26]} Qe4 {[%emt 0:00:59]} 35. Qh3 {[%emt 0:01:59]} Re7 {[%emt 0:00:54]} 36. Rac1 {[%emt 0:00:43]} e5 {[%emt 0:00:42]} 37. Nc5 {[%emt 0:01:07]} Qb4 {[%emt 0:00:13]} 38. fxe5 {[%emt 0:02:22]} Qd2+ {[%emt 0:00:31]} 39. Kh1 {[%emt 0:00:28]} Kh7 {[%emt 0:00:44]} 40. Nd7 {[%emt 0:01:07]} Rgg7 {[%emt 0:00:59]} 41. Nf6+ {[%emt 0:30:21]} Kh8 {[%emt 0:30:07]} 42. Qc8+ {[%emt 0:00:09]} 1-0

[Event "DFMMLV 2019"]
[Site "Braunfels"]
[Date "2019.06.23"]
[Round "5.35"]
[White "Barpiyeva, Gulsana"]
[Black "Wulf, Constanze"]
[Result "1/2-1/2"]
[ECO "D47"]
[WhiteElo "2018"]
[BlackElo "1711"]
[Annotator "NA"]
[PlyCount "85"]
[EventDate "2019.06.20"]
[EventType "team-tourn"]
[EventCountry "GER"]
[SourceTitle "playchess.com"]
[Source "ChessBase"]
[SourceQuality "1"]
[WhiteTeam "Hessen 1"]
[BlackTeam "Hamburg"]
[TimeControl "40/5400+30:1800+30"]

1. d4 {[%emt 0:00:00]} d5 {[%emt 0:00:00]} 2. c4 {[%emt 0:00:00]} e6 {[%emt 0:00:00]} 3. e3 {[%emt 0:00:00]} c6 {[%emt 0:00:06]} 4. Nf3 {[%emt 0:00:08]} Nf6 {[%emt 0:00:11]} 5. Nc3 {[%emt 0:00:18]} Nbd7 {[%emt 0:00:05]} 6. Bd3 {[%emt 0:00:30]} dxc4 {[%emt 0:00:09]} 7. Bxc4 {[%emt 0:00:10]} b5 {[%emt 0:00:05]} 8. Bd3 {[%emt 0:00:30]} Bb7 9. a3 {[%emt 0:01:27]} a6 {[%emt 0:06:59]} 10. b4 {[%emt 0:02:26]} a5 {[%emt 0:01:11]} 11. Rb1 {[%emt 0:10:18]} Qb8 {[%emt 0:17:49]} 12. O-O {[%emt 0:03:41]} Be7 {[%emt 0:01:57]} 13. Qe2 {[%emt 0:04:11]} O-O {[%emt 0:02:51]} 14. e4 {[%emt 0:03:34]} axb4 {[%emt 0:06:29]} 15. axb4 {[%emt 0:00:09]} e5 {[%emt 0:00:08]} 16. h3 {[%emt 0:16:12]} Re8 {[%emt 0:18:29]} 17. Be3 {[%emt 0:04:33]} Bd6 {[%emt 0:08:31]} 18. Nh4 {[%emt 0:09:27]} exd4 {[%emt 0:02:45]} 19. Bxd4 {[%emt 0:00:43]} c5 {[%emt 0:04:47]} 20. bxc5 {[%emt 0:04:41]} Bxc5 {[%emt 0:01:46]} 21. Bxc5 {[%emt 0:01:47]} Nxc5 {[%emt 0:00:06]} 22. Bxb5 {[%emt 0:01:43]} Re6 {[%emt 0:01:40]} 23. Bc4 {[%emt 0:01:49]} Re8 {[%emt 0:00:15]} 24. f3 {[%emt 0:03:58]} Qe5 {[%emt 0:04:33]} 25. Nb5 {[%emt 0:03:18]} Ba6 {[%emt 0:02:32]} 26. Rfd1 {[%emt 0:02:31]} Red8 {[%emt 0:05:20]} 27. Nf5 {[%emt 0:05:28]} Bxb5 {[%emt 0:01:46]} 28. Rxb5 {[%emt 0:04:40]} Rxd1+ {[%emt 0:01:26]} 29. Qxd1 {[%emt 0:00:27]} Ra1 {[%emt 0:00:20]} 30. Rb8+ {[%emt 0:02:56]} Qxb8 {[%emt 0:00:09]} 31. Qxa1 {[%emt 0:00:09]} Ncd7 {[%emt 0:02:42]} 32. Qd4 {[%emt 0:07:30]} Qe5 {[%emt 0:03:22]} 33. Qxe5 {[%emt 0:01:30]} Nxe5 {[%emt 0:00:05]} 34. Bb3 {[%emt 0:00:17]} Nh5 {[%emt 0:00:29]} 35. Ne7+ {[%emt 0:02:10]} Kf8 {[%emt 0:00:22]} 36. Nd5 {[%emt 0:00:06]} Nd3 {[%emt 0:01:30]} 37. Kh2 {[%emt 0:01:58]} Ne1 {[%emt 0:03:05]} 38. Bd1 {[%emt 0:00:33]} Nd3 {[%emt 0:00:54]} 39. g3 {[%emt 0:01:11]} g6 {[%emt 0:01:43]} 40. f4 {[%emt 0:01:42]} Ng7 {[%emt 0:00:23]} 41. Bc2 {[%emt 0:05:28]} Nc5 {[%emt 0:00:00]} 42. g4 {[%emt 0:01:31]} Nge6 {[%emt 0:01:37]} 43. e5 {[%emt 0:03:16]} 1/2-1/2

[Event "DFMMLV 2019"]
[Site "Braunfels"]
[Date "2019.06.23"]
[Round "5.36"]
[White "Tobianski, Karina"]
[Black "Lukas, Anne"]
[Result "1-0"]
[ECO "B22"]
[WhiteElo "1680"]
[BlackElo "1842"]
[Annotator "NA"]
[PlyCount "67"]
[EventDate "2019.06.20"]
[EventType "team-tourn"]
[EventCountry "GER"]
[SourceTitle "playchess.com"]
[Source "ChessBase"]
[SourceQuality "1"]
[WhiteTeam "Hamburg"]
[BlackTeam "Hessen 1"]
[TimeControl "40/5400+30:1800+30"]

1. e4 {[%emt 0:00:00]} c5 {[%emt 0:00:00]} 2. c3 {[%emt 0:00:00]} g6 {[%emt 0:00:00]} 3. d4 {[%emt 0:00:00]} cxd4 {[%emt 0:00:00]} 4. cxd4 {[%emt 0:00:00]} d5 {[%emt 0:00:00]} 5. exd5 {[%emt 0:00:00]} Nf6 {[%emt 0:00:00]} 6. Bb5+ {[%emt 0:00:17]} Bd7 {[%emt 0:00:36]} 7. Bc4 {[%emt 0:00:18]} a6 {[%emt 0:01:01]} 8. Nc3 {[%emt 0:01:11]} b5 {[%emt 0:01:00]} 9. Bb3 {[%emt 0:00:53]} b4 {[%emt 0:01:21]} 10. Nce2 {[%emt 0:02:57]} Bb5 {[%emt 0:00:59]} 11. Nf3 {[%emt 0:03:25]} Nxd5 {[%emt 0:01:21]} 12. O-O {[%emt 0:02:54]} Bg7 {[%emt 0:00:37]} 13. Re1 {[%emt 0:00:57]} O-O {[%emt 0:01:19]} 14. Bg5 {[%emt 0:03:28]} Re8 {[%emt 0:07:03]} 15. Qd2 {[%emt 0:01:49]} Nc6 {[%emt 0:01:22]} 16. Rad1 {[%emt 0:13:38]} Ra7 {[%emt 0:07:16]} 17. Bh6 {[%emt 0:05:29]} Na5 {[%emt 0:02:50]} 18. Bxd5 {[%emt 0:05:07]} Qxd5 {[%emt 0:00:33]} 19. Bxg7 {[%emt 0:00:00]} Kxg7 {[%emt 0:00:08]} 20. Qxb4 {[%emt 0:00:15]} Kg8 {[%emt 0:00:30]} 21. Nc3 {[%emt 0:02:24]} Qb7 {[%emt 0:07:24]} 22. a4 {[%emt 0:04:07]} Bc6 {[%emt 0:09:35]} 23. Qc4 {[%emt 0:01:09]} Bxf3 {[%emt 0:00:20]} 24. gxf3 {[%emt 0:00:12]} Rc8 {[%emt 0:01:06]} 25. Qe2 {[%emt 0:01:16]} Rc6 {[%emt 0:02:48]} 26. d5 {[%emt 0:01:53]} Rf6 {[%emt 0:00:27]} 27. Ne4 {[%emt 0:07:02]} Rf5 {[%emt 0:01:07]} 28. d6 {[%emt 0:01:38]} exd6 {[%emt 0:00:17]} 29. Rxd6 {[%emt 0:00:37]} Qb4 {[%emt 0:01:30]} 30. Qd2 {[%emt 0:08:06]} Qb7 {[%emt 0:04:19]} 31. Qc3 {[%emt 0:01:43]} Qe7 32. Red1 {[%emt 0:05:52]} Qg5+ {[%emt 0:04:08]} 33. Ng3 {[%emt 0:04:20]} Kf8 34. R1d4 1-0

[Event "DFMMLV 2019"]
[Site "Braunfels"]
[Date "2019.06.23"]
[Round "5.37"]
[White "Frank, Michelle Viviane"]
[Black "Neumann, Ramona"]
[Result "1-0"]
[ECO "C00"]
[WhiteElo "1915"]
[BlackElo "1709"]
[Annotator "NA"]
[PlyCount "65"]
[EventDate "2019.06.20"]
[EventType "team-tourn"]
[EventCountry "GER"]
[SourceTitle "playchess.com"]
[Source "ChessBase"]
[SourceQuality "1"]
[WhiteTeam "Hessen 1"]
[BlackTeam "Hamburg"]
[TimeControl "40/5400+30:1800+30"]

1. e4 {[%emt 0:00:00]} e6 {[%emt 0:00:00]} 2. d4 {[%emt 0:00:00]} d5 {[%emt 0:00:00]} 3. Nc3 {[%emt 0:00:00]} Bb4 {[%emt 0:01:01]} 4. e5 {[%emt 0:00:00]} Ne7 {[%emt 0:06:11]} 5. a3 {[%emt 0:00:14]} Bxc3+ {[%emt 0:00:05]} 6. bxc3 {[%emt 0:00:07]} c5 {[%emt 0:02:00]} 7. Qg4 {[%emt 0:00:08]} O-O {[%emt 0:13:03]} 8. Bd3 {[%emt 0:00:18]} c4 {[%emt 0:04:03]} 9. Be2 {[%emt 0:00:36]} Nd7 {[%emt 0:00:37]} 10. Nf3 {[%emt 0:01:55]} f5 {[%emt 0:13:49]} 11. Qh3 {[%emt 0:00:35]} Qe8 {[%emt 0:05:53]} 12. Ng5 {[%emt 0:00:08]} Qg6 {[%emt 0:00:23]} 13. f4 {[%emt 0:00:45]} Qh6 {[%emt 0:05:35]} 14. Qxh6 {[%emt 0:01:58]} gxh6 {[%emt 0:00:05]} 15. Nxe6 {[%emt 0:00:06]} Rf7 {[%emt 0:00:32]} 16. Bh5 {[%emt 0:00:18]} Ng6 {[%emt 0:00:41]} 17. Nc7 {[%emt 0:00:06]} Nb6 {[%emt 0:05:24]} 18. Nxa8 {[%emt 0:00:13]} Nxa8 {[%emt 0:00:02]} 19. a4 {[%emt 0:00:25]} b6 {[%emt 0:00:56]} 20. O-O {[%emt 0:01:12]} Nc7 {[%emt 0:00:36]} 21. g3 {[%emt 0:00:38]} Ne6 {[%emt 0:01:00]} 22. Bf3 {[%emt 0:00:19]} Bb7 {[%emt 0:01:36]} 23. a5 {[%emt 0:00:10]} b5 {[%emt 0:00:17]} 24. a6 {[%emt 0:00:05]} Bc6 {[%emt 0:00:27]} 25. Ba3 {[%emt 0:00:12]} Rg7 {[%emt 0:01:56]} 26. Kf2 {[%emt 0:00:10]} Ngf8 {[%emt 0:01:05]} 27. Bd6 {[%emt 0:00:37]} Nd7 {[%emt 0:01:05]} 28. Rfb1 {[%emt 0:00:48]} Nb6 {[%emt 0:02:31]} 29. Ra5 {[%emt 0:00:24]} Be8 {[%emt 0:06:15]} 30. Rbxb5 {[%emt 0:00:12]} Bxb5 {[%emt 0:00:50]} 31. Rxb5 {[%emt 0:00:06]} Rd7 {[%emt 0:07:00]} 32. Rxb6 {[%emt 0:00:23]} axb6 {[%emt 0:00:59]} 33. Bxd5 {[%emt 0:00:05]} 1-0

[Event "DFMMLV 2019"]
[Site "Braunfels"]
[Date "2019.06.23"]
[Round "5.38"]
[White "Hoefner, Nina"]
[Black "Werner, Rosalie"]
[Result "1/2-1/2"]
[ECO "C14"]
[WhiteElo "1557"]
[BlackElo "1610"]
[Annotator "NA"]
[PlyCount "49"]
[EventDate "2019.06.20"]
[EventType "team-tourn"]
[EventCountry "GER"]
[SourceTitle "playchess.com"]
[Source "ChessBase"]
[SourceQuality "1"]
[WhiteTeam "Hamburg"]
[BlackTeam "Hessen 2"]
[TimeControl "40/5400+30:1800+30"]

1. e4 {[%emt 0:00:00]} e6 {[%emt 0:00:00]} 2. d4 {[%emt 0:00:00]} d5 {[%emt 0:00:00]} 3. Nc3 {[%emt 0:00:00]} Nf6 {[%emt 0:00:00]} 4. Bg5 {[%emt 0:00:07]} Be7 {[%emt 0:00:00]} 5. e5 {[%emt 0:00:07]} Nfd7 {[%emt 0:00:00]} 6. Bxe7 {[%emt 0:00:06]} Qxe7 {[%emt 0:00:03]} 7. f4 {[%emt 0:00:29]} a6 {[%emt 0:00:09]} 8. Nf3 {[%emt 0:01:05]} c5 {[%emt 0:00:09]} 9. dxc5 {[%emt 0:00:04]} Nxc5 {[%emt 0:00:32]} 10. Be2 {[%emt 0:04:05]} Nc6 {[%emt 0:00:41]} 11. Qd2 {[%emt 0:00:46]} b5 {[%emt 0:00:29]} 12. a3 {[%emt 0:03:51]} Bb7 {[%emt 0:00:48]} 13. b4 {[%emt 0:04:04]} Nd7 {[%emt 0:03:28]} 14. O-O {[%emt 0:00:35]} Rc8 {[%emt 0:04:52]} 15. Nd4 {[%emt 0:03:53]} g6 {[%emt 0:08:39]} 16. Rac1 {[%emt 0:07:34]} O-O {[%emt 0:12:06]} 17. Nd1 {[%emt 0:01:28]} f6 {[%emt 0:12:06]} 18. exf6 {[%emt 0:02:42]} Qxf6 {[%emt 0:05:14]} 19. Nxc6 {[%emt 0:02:18]} Rxc6 {[%emt 0:00:42]} 20. Ne3 {[%emt 0:03:00]} Qc3 {[%emt 0:09:28]} 21. Qd3 {[%emt 0:03:19]} Rfc8 {[%emt 0:02:12]} 22. Rfd1 {[%emt 0:13:43]} Nf8 {[%emt 0:03:47]} 23. Ng4 {[%emt 0:05:18]} Qb2 {[%emt 0:02:18]} 24. Ne3 {[%emt 0:11:07]} Qf6 {[%emt 0:03:57]} 25. Qd4 1/2-1/2

[Event "DFMMLV 2019"]
[Site "Braunfels"]
[Date "2019.06.23"]
[Round "5.39"]
[White "Pralle, Katharina"]
[Black "Reich, Kristina"]
[Result "1/2-1/2"]
[ECO "A34"]
[WhiteElo "1971"]
[BlackElo "1544"]
[Annotator "NA"]
[PlyCount "52"]
[EventDate "2019.06.20"]
[EventType "team-tourn"]
[EventCountry "GER"]
[SourceTitle "playchess.com"]
[Source "ChessBase"]
[SourceQuality "1"]
[WhiteTeam "Hessen 1"]
[BlackTeam "Hamburg"]
[TimeControl "40/5400+30:1800+30"]

1. c4 {[%emt 0:00:00]} c5 {[%emt 0:00:00]} 2. Nc3 {[%emt 0:00:00]} b6 {[%emt 0:00:00]} 3. Nf3 {[%emt 0:00:00]} Bb7 {[%emt 0:00:00]} 4. g3 {[%emt 0:00:20]} e6 {[%emt 0:00:35]} 5. Bg2 {[%emt 0:00:35]} Nf6 {[%emt 0:01:09]} 6. O-O {[%emt 0:00:08]} d6 {[%emt 0:00:42]} 7. d4 {[%emt 0:02:48]} cxd4 {[%emt 0:00:17]} 8. Nxd4 {[%emt 0:00:20]} Bxg2 {[%emt 0:03:59]} 9. Kxg2 {[%emt 0:00:04]} a6 {[%emt 0:00:22]} 10. Qd3 {[%emt 0:08:10]} Nbd7 {[%emt 0:05:19]} 11. b3 {[%emt 0:06:16]} Rc8 {[%emt 0:06:36]} 12. Bb2 {[%emt 0:03:02]} Be7 {[%emt 0:00:25]} 13. Nf3 {[%emt 0:07:07]} O-O {[%emt 0:02:22]} 14. Rfd1 {[%emt 0:03:56]} Rc7 {[%emt 0:04:53]} 15. Qd4 {[%emt 0:06:56]} Qa8 {[%emt 0:05:54]} 16. Kg1 {[%emt 0:00:58]} Rfc8 {[%emt 0:08:20]} 17. Ng5 {[%emt 0:13:19]} e5 {[%emt 0:19:57]} 18. Qe3 {[%emt 0:09:50]} Ng4 {[%emt 0:02:41]} 19. Qd2 {[%emt 0:04:57]} Ndf6 {[%emt 0:09:31]} 20. Nf3 {[%emt 0:06:00]} Ne4 {[%emt 0:03:40]} 21. Nxe4 {[%emt 0:01:43]} Qxe4 {[%emt 0:00:17]} 22. Qd3 {[%emt 0:06:50]} Qg6 {[%emt 0:02:40]} 23. Qxg6 {[%emt 0:00:49]} hxg6 {[%emt 0:00:10]} 24. Ba3 {[%emt 0:00:14]} Rd8 {[%emt 0:00:31]} 25. Rd2 {[%emt 0:00:38]} f6 {[%emt 0:01:30]} 26. Rad1 {[%emt 0:00:42]} Rcd7 {[%emt 0:00:41]} 1/2-1/2

[Event "DFMMLV 2019"]
[Site "Braunfels"]
[Date "2019.06.23"]
[Round "5.40"]
[White "Hoelzer, Jeanette"]
[Black "Heymann-Lobzhanidze, Anna-Luise"]
[Result "0-1"]
[ECO "B07"]
[WhiteElo "1662"]
[BlackElo "1950"]
[Annotator "NA"]
[PlyCount "78"]
[EventDate "2019.06.20"]
[EventType "team-tourn"]
[EventCountry "GER"]
[SourceTitle "playchess.com"]
[Source "ChessBase"]
[SourceQuality "1"]
[WhiteTeam "Hamburg"]
[BlackTeam "Hessen 1"]
[TimeControl "40/5400+30:1800+30"]

1. e4 {[%emt 0:00:00]} d6 {[%emt 0:00:00]} 2. d4 {[%emt 0:00:07]} Nf6 {[%emt 0:00:00]} 3. Nc3 {[%emt 0:00:53]} g6 {[%emt 0:00:00]} 4. f3 {[%emt 0:00:49]} Bg7 {[%emt 0:00:03]} 5. Be3 {[%emt 0:00:14]} c6 {[%emt 0:00:11]} 6. Qd2 {[%emt 0:00:24]} b5 {[%emt 0:00:33]} 7. O-O-O {[%emt 0:00:37]} b4 {[%emt 0:03:40]} 8. Nce2 {[%emt 0:00:54]} Qa5 {[%emt 0:00:11]} 9. Kb1 {[%emt 0:00:58]} Nbd7 {[%emt 0:01:39]} 10. Bh6 {[%emt 0:01:25]} Bxh6 {[%emt 0:00:11]} 11. Qxh6 {[%emt 0:00:16]} c5 {[%emt 0:00:59]} 12. Nc1 {[%emt 0:08:47]} cxd4 {[%emt 0:07:12]} 13. Nb3 {[%emt 0:02:33]} Qb6 {[%emt 0:00:39]} 14. Nxd4 {[%emt 0:01:28]} a5 {[%emt 0:03:18]} 15. Nge2 {[%emt 0:19:14]} Ba6 {[%emt 0:05:41]} 16. Nc1 {[%emt 0:04:01]} a4 {[%emt 0:05:14]} 17. Bxa6 {[%emt 0:09:18]} Rxa6 {[%emt 0:01:24]} 18. Rhe1 {[%emt 0:01:30]} a3 {[%emt 0:03:06]} 19. b3 {[%emt 0:03:49]} Qc5 {[%emt 0:10:30]} 20. Nde2 {[%emt 0:03:31]} Rc6 {[%emt 0:00:43]} 21. Rd2 {[%emt 0:00:30]} Ne5 {[%emt 0:24:52]} 22. Nd3 {[%emt 0:01:43]} Nxd3 {[%emt 0:01:13]} 23. cxd3 {[%emt 0:00:20]} Qf2 {[%emt 0:04:06]} 24. Red1 {[%emt 0:05:02]} Rc5 {[%emt 0:00:17]} 25. Nf4 {[%emt 0:03:32]} Qe3 {[%emt 0:01:04]} 26. Re2 {[%emt 0:02:48]} Qd4 {[%emt 0:00:19]} 27. Red2 {[%emt 0:05:04]} Rc7 {[%emt 0:10:44]} 28. Ne2 {[%emt 0:01:58]} Qf2 {[%emt 0:00:43]} 29. Nf4 {[%emt 0:01:48]} Qe3 {[%emt 0:00:10]} 30. Re2 {[%emt 0:02:49]} Qd4 {[%emt 0:00:11]} 31. Red2 {[%emt 0:00:57]} Rg8 {[%emt 0:04:02]} 32. h4 {[%emt 0:04:27]} Kd7 {[%emt 0:00:20]} 33. Ne2 {[%emt 0:07:58]} Qf2 {[%emt 0:00:48]} 34. Qg5 Rc5 35. Ng1 {[%emt 0:05:10]} Qd4 {[%emt 0:09:05]} 36. Qg3 {[%emt 0:00:25]} Rgc8 {[%emt 0:00:36]} 37. Qf2 {[%emt 0:01:23]} Qa1+ {[%emt 0:00:29]} 38. Kxa1 {[%emt 0:00:50]} Rc1+ {[%emt 0:00:06]} 39. Rxc1 {[%emt 0:00:10]} Rxc1# {[%emt 0:00:07]} 0-1

[Event "DFMMLV 2019"]
[Site "Braunfels"]
[Date "2019.06.23"]
[Round "5.41"]
[White "Bardorz, Jana"]
[Black "Tornay, Haizea"]
[Result "1-0"]
[ECO "B13"]
[WhiteElo "1769"]
[BlackElo "1598"]
[Annotator "NA"]
[PlyCount "99"]
[EventDate "2019.06.20"]
[EventType "team-tourn"]
[EventCountry "GER"]
[SourceTitle "playchess.com"]
[Source "ChessBase"]
[SourceQuality "1"]
[WhiteTeam "Bayern 2"]
[BlackTeam "Hessen 2"]
[TimeControl "40/5400+30:1800+30"]

1. e4 {[%emt 0:00:00]} c6 {[%emt 0:00:00]} 2. d4 {[%emt 0:00:00]} d5 {[%emt 0:00:00]} 3. exd5 {[%emt 0:00:00]} cxd5 {[%emt 0:00:00]} 4. Bd3 {[%emt 0:00:01]} Nc6 {[%emt 0:00:00]} 5. c3 {[%emt 0:00:06]} Qc7 {[%emt 0:00:13]} 6. Ne2 {[%emt 0:05:52]} Bg4 {[%emt 0:05:03]} 7. f3 {[%emt 0:04:49]} Bh5 {[%emt 0:01:16]} 8. Bf4 {[%emt 0:07:31]} Qb6 {[%emt 0:01:51]} 9. Nd2 {[%emt 0:08:23]} e6 {[%emt 0:07:48]} 10. O-O {[%emt 0:04:10]} Nf6 {[%emt 0:04:32]} 11. Qc2 {[%emt 0:04:17]} Bg6 {[%emt 0:01:27]} 12. Bg3 {[%emt 0:08:22]} Rc8 {[%emt 0:06:35]} 13. Qb1 {[%emt 0:08:43]} Be7 {[%emt 0:08:04]} 14. f4 {[%emt 0:02:20]} Nh5 {[%emt 0:07:27]} 15. f5 {[%emt 0:04:15]} exf5 {[%emt 0:01:56]} 16. Bxf5 {[%emt 0:02:04]} O-O {[%emt 0:00:38]} 17. Kh1 {[%emt 0:03:10]} Nxg3+ {[%emt 0:05:33]} 18. Nxg3 {[%emt 0:00:37]} Bd6 {[%emt 0:00:30]} 19. Ne2 {[%emt 0:05:07]} Rce8 {[%emt 0:04:32]} 20. Bxg6 {[%emt 0:04:23]} fxg6 {[%emt 0:00:17]} 21. Rxf8+ {[%emt 0:02:25]} Rxf8 {[%emt 0:00:03]} 22. Nf3 {[%emt 0:01:53]} Re8 {[%emt 0:02:52]} 23. Qc2 {[%emt 0:01:33]} Qa6 {[%emt 0:00:57]} 24. Neg1 {[%emt 0:04:02]} Qc4 {[%emt 0:08:07]} 25. b3 {[%emt 0:03:10]} Qa6 {[%emt 0:02:31]} 26. Re1 {[%emt 0:00:48]} Rxe1 {[%emt 0:01:34]} 27. Nxe1 {[%emt 0:00:38]} Qf1 {[%emt 0:00:57]} 28. Qe2 {[%emt 0:00:47]} Qxe2 {[%emt 0:04:03]} 29. Nxe2 {[%emt 0:00:05]} Kf7 {[%emt 0:02:09]} 30. Kg1 {[%emt 0:02:40]} Ke6 {[%emt 0:01:35]} 31. Kf2 {[%emt 0:01:16]} Bc7 {[%emt 0:06:00]} 32. Nd3 {[%emt 0:04:13]} Kf5 {[%emt 0:04:36]} 33. Kf3 {[%emt 0:02:16]} Ne7 {[%emt 0:02:25]} 34. c4 {[%emt 0:01:51]} Bb6 {[%emt 0:01:45]} 35. Ndf4 {[%emt 0:02:12]} Nc6 {[%emt 0:06:14]} 36. c5 {[%emt 0:01:45]} Ba5 {[%emt 0:01:16]} 37. Nxd5 {[%emt 0:01:13]} g5 {[%emt 0:00:06]} 38. Ne3+ {[%emt 0:00:38]} Kf6 {[%emt 0:00:50]} 39. g4 {[%emt 0:00:19]} g6 {[%emt 0:01:09]} 40. Ke4 {[%emt 0:00:29]} Bc7 {[%emt 0:01:50]} 41. Nd5+ {[%emt 0:30:59]} Kf7 {[%emt 0:01:05]} 42. Nxc7 {[%emt 0:00:00]} Nb4 {[%emt 0:01:55]} 43. a3 {[%emt 0:00:00]} Nc2 44. d5 {[%emt 0:00:00]} Ke7 {[%emt 0:01:40]} 45. Nb5 {[%emt 0:00:00]} a6 {[%emt 0:00:22]} 46. Ned4 {[%emt 0:00:00]} Nxd4 {[%emt 0:01:00]} 47. Nxd4 {[%emt 0:00:00]} Kd7 {[%emt 0:00:13]} 48. Ke5 {[%emt 0:00:00]} Ke7 {[%emt 0:00:26]} 49. b4 {[%emt 0:00:00]} h6 {[%emt 0:00:42]} 50. d6+ {[%emt 0:00:00]} 1-0